bitfinex-derivatives/quotes_ETHF0:USTF0_20251009
["timestamp","ask_amount","ask_price","bid_price","bid_amount"]
[1760023446193,0.8982,4330.4,4330.3,3.2078]
[1760023446495,1.1312,4330.4,4330.3,3.2078]
[1760023446690,0.8982,4330.9,4330.3,4.0444]
[1760023446894,0.8982,4330.7,4330.6,0.8366]
[1760023447089,0.8982,4330.7,4330.6,0.839041]
[1760023447288,0.8982,4330.7,4330.6,0.002441]
[1760023448103,1.1312,4330.7,4330.6,0.002441]
[1760023448792,1.69056833,4330.7,4330.6,0.002441]
[1760023449889,1.1312,4330.7,4330.6,0.002441]
[1760023450893,0.8982,4331.3,4331.2,0.41542]
[1760023451399,1.1312,4331.3,4331.2,1.25202]
[1760023451600,1.6928862,4331.3,4331.2,0.41542]
[1760023451800,1.6928862,4331.3,4330.8,0.8366]
[1760023451993,1.4598862,4331.2,4331.1,0.41543]
[1760023452192,1.4598862,4331.2,4331.1,1.25203]
[1760023452497,1.4598862,4331.2,4331.1,0.8366]
[1760023452686,0.5616862,4331.2,4331.0,0.41543]
[1760023452889,1.4529862,4331.1,4331.0,0.41543]
[1760023453089,2.92204965,4331.1,4331.0,0.41543]
[1760023453495,0.8913,4330.7,4330.6,0.002441]
[1760023453695,2.92204965,4330.7,4330.6,0.002441]
[1760023453891,1.6859862,4330.7,4330.6,0.002441]
[1760023455090,1.6859862,4330.7,4329.4,1.03898]
[1760023455091,0.3412,4330.5,4329.8,0.41555]
[1760023455290,1.9970816,4330.0,4329.3,0.4156]
[1760023455490,1.9970816,4330.0,4328.6,3.2078]
[1760023455491,0.8913,4329.3,4328.6,3.2078]
[1760023455692,0.3412,4329.0,4328.7,40.8]
[1760023455891,1.65788712,4328.8,4328.6,3.2078]
[1760023456087,1.4529862,4328.7,4328.6,3.20991736]
[1760023456299,4.51812541,4328.7,4328.6,0.00211736]
[1760023456494,0.8913,4328.2,4328.1,3.2078]
[1760023456699,1.2325,4328.0,4327.9,0.43883616]
[1760023456903,1.7941862,4328.0,4327.9,0.43883616]
[1760023457096,1.4529862,4328.0,4327.4,2.48343616]
[1760023457394,0.7946862,4327.9,4327.7,0.41575]
[1760023457596,1.4529862,4327.8,4327.7,0.41575]
[1760023457792,0.8913,4327.7,4327.4,2.48637341]
[1760023457998,0.8913,4327.5,4327.4,1.64957341]
[1760023458198,1.6859862,4327.5,4327.4,2.06535341]
[1760023458595,0.7946862,4327.5,4327.4,2.90215341]
[1760023458999,1.4529862,4327.5,4327.4,0.00293725]
[1760023459201,1.6859862,4327.5,4327.4,0.00293725]
[1760023459401,0.8913,4327.4,4326.7,3.2078]
[1760023459602,0.5616862,4327.3,4326.9,0.8368]
[1760023459800,1.4529862,4327.2,4327.1,0.8368]
[1760023460102,0.5616862,4327.2,4327.0,1.25262]
[1760023460314,0.8913,4327.0,4326.8,40.8]
[1760023460509,0.8913,4326.8,4326.2,3.2078]
[1760023460706,0.7946862,4326.7,4326.4,0.41587]
[1760023460921,3.2502384,4326.7,4326.2,4.462759]
[1760023461112,0.8913,4326.5,4326.2,44.010069]
[1760023461511,1.2325,4327.0,4326.6,0.41585]
[1760023461719,0.41588,4326.4,4326.2,40.802269]
[1760023461917,1.6726658,4326.3,4326.2,0.002269]
[1760023462517,1.1243,4326.3,4326.2,0.839069]
[1760023462716,0.233,4326.3,4326.2,0.418159]
[1760023462917,0.233,4326.3,4326.2,1.254959]
[1760023463118,0.233,4326.3,4326.2,0.002269]
[1760023463315,0.233,4326.3,4326.2,0.839069]
[1760023463516,3.2078,4327.2,4326.2,0.839069]
[1760023463719,1.67143314,4326.9,4326.6,0.41585]
[1760023464019,0.54713314,4326.8,4326.6,0.41585]
[1760023464320,4.0991,4327.2,4326.2,0.002269]
[1760023464321,1.1243,4326.7,4326.5,1.25266]
[1760023464523,0.233,4326.7,4326.6,0.8368]
[1760023465022,0.233,4326.7,4326.6,4.0446]
[1760023466416,0.233,4326.9,4326.8,0.8368]
[1760023466617,0.8913,4327.6,4327.5,0.41577]
[1760023466816,1.1243,4327.6,4327.5,0.8368]
[1760023467113,0.8913,4327.4,4327.0,0.8368]
[1760023467321,0.41581,4327.2,4326.6,3.2078]
[1760023467519,0.8913,4327.0,4326.6,3.62366]
[1760023467718,0.8913,4327.0,4326.6,3.2078]
[1760023467919,0.233,4327.1,4326.9,0.41583]
[1760023468112,1.1243,4327.1,4327.0,0.8368]
[1760023468323,0.233,4327.1,4326.7,1.25265]
[1760023468525,0.8913,4327.0,4326.8,0.8368]
[1760023468825,0.8913,4327.0,4326.8,1.25263]
[1760023469123,0.8913,4326.9,4326.6,4.0446]
[1760023469323,0.8913,4326.9,4326.7,0.8368]
[1760023469521,0.41584,4326.9,4326.7,0.8368]
[1760023469719,0.8913,4326.8,4326.7,0.8368]
[1760023469916,1.2325,4327.0,4326.3,0.8368]
[1760023470226,0.8913,4326.3,4326.2,0.839069]
[1760023470427,0.233,4326.3,4326.2,0.839069]
[1760023471122,0.1848,4327.1,4326.9,0.8368]
[1760023471421,0.1848,4327.1,4327.0,1.1912]
[1760023471824,3.2078,4327.9,4327.8,1.25254]
[1760023472026,3.4408,4327.9,4327.8,1.25254]
[1760023472522,3.4408,4327.9,4327.5,0.8368]
[1760023472723,3.4408,4327.9,4327.4,0.41578]
[1760023472928,0.8913,4327.8,4327.6,0.41576]
[1760023473126,3.4408,4327.9,4327.8,0.8368]
[1760023473427,0.233,4327.9,4327.8,0.8368]
[1760023473627,0.233,4327.9,4327.8,1.25254]
[1760023473830,1.1243,4327.9,4327.8,0.41574]
[1760023474126,0.233,4327.9,4327.8,1.25254]
[1760023474624,3.2078,4328.4,4328.3,0.8368]
[1760023474826,3.4408,4328.4,4328.3,0.8368]
[1760023475225,3.4408,4328.4,4328.3,41.6368]
[1760023475728,1.53999,4328.4,4328.3,41.6368]
[1760023475931,1.67187545,4328.4,4328.3,41.6368]
[1760023476228,1.1243,4328.4,4328.3,41.6368]
[1760023476431,0.89407461,4328.8,4328.3,40.8]
[1760023476626,0.89407461,4328.8,4328.7,0.8368]
[1760023476826,1.67492407,4328.8,4328.7,0.8368]
[1760023477025,0.78362407,4328.8,4328.7,0.8368]
[1760023477323,1.12707461,4328.8,4328.7,0.8368]
[1760023477525,0.8913,4328.4,4328.3,40.8]
[1760023477724,1.1243,4328.4,4328.3,40.8]
[1760023477931,1.1243,4328.4,4327.2,1.2526]
[1760023477932,0.8913,4327.4,4327.2,1.2526]
[1760023478133,1.1243,4327.4,4327.3,0.8368]
[1760023478331,1.1243,4327.4,4326.9,0.41583]
[1760023478332,0.233,4327.4,4326.9,0.41583]
[1760023478532,0.4158,4327.2,4326.7,0.41585]
[1760023478826,3.2078,4327.9,4326.8,44.0078]
[1760023479021,1.19445154,4327.8,4327.4,0.41578]
[1760023479225,0.54570154,4327.7,4327.4,0.8368]
[1760023479428,1.1243,4327.8,4327.7,0.8368]
[1760023479628,0.233,4327.8,4327.7,0.8368]
[1760023479835,0.8913,4328.2,4328.0,0.41572]
[1760023480034,1.1243,4328.1,4327.8,0.41574]
[1760023480234,0.8913,4327.9,4327.6,0.41576]
[1760023480531,0.8913,4327.7,4327.0,0.8368]
[1760023480726,0.8913,4327.7,4326.8,44.0078]
[1760023480727,3.2078,4327.3,4326.8,41.21584]
[1760023480931,0.233,4327.2,4326.8,41.21584]
[1760023481124,0.233,4327.1,4326.9,0.41583]
[1760023481433,0.233,4327.1,4327.0,1.25262]
[1760023481628,0.8913,4327.7,4327.6,0.41576]
[1760023481828,0.233,4327.7,4327.6,1.25256]
[1760023482325,0.233,4327.7,4327.4,0.41578]
[1760023482526,0.54701629,4327.6,4327.5,0.41577]
[1760023482828,3.2078,4327.8,4327.6,1.24886]
[1760023483031,3.2078,4327.8,4326.8,40.8]
[1760023483032,0.41578,4327.5,4326.8,40.8]
[1760023483233,0.8653,4327.1,4326.9,0.41582]
[1760023483433,1.28113,4327.0,4326.8,40.8]
[1760023483631,0.8653,4326.9,4326.8,40.8]
[1760023483832,0.8653,4326.9,4325.8,0.8331]
[1760023483833,1.28119,4326.3,4325.8,0.8331]
[1760023484028,2.06305327,4326.3,4325.8,0.8331]
[1760023484228,2.06305327,4326.3,4325.8,41.6331]
[1760023485038,1.64716327,4326.3,4326.2,0.866869]
[1760023485543,0.865,4326.7,4326.3,0.41589]
[1760023485739,0.54874101,4326.6,4326.2,3.210069]
[1760023485940,3.2078,4326.9,4326.3,0.8646]
[1760023485941,0.78274101,4326.5,4326.3,0.8646]
[1760023486135,1.64774101,4326.4,4326.3,1.28048]
[1760023486535,1.64774101,4326.4,4326.2,0.002269]
[1760023486737,0.234,4326.4,4326.3,0.41589]
[1760023486930,0.78306767,4326.4,4326.3,1.28049]
[1760023487436,0.865,4326.3,4326.2,0.002269]
[1760023487632,1.41406767,4326.3,4326.2,0.002269]
[1760023487838,1.41406767,4326.3,4326.2,0.866869]
[1760023488134,1.64806767,4326.3,4326.2,0.866869]
[1760023489039,1.64806767,4326.3,4326.2,0.002269]
[1760023489436,0.54906767,4326.3,4326.2,0.866869]
[1760023489634,0.865,4326.8,4326.5,0.41586]
[1760023489838,0.865,4326.6,4326.5,0.8646]
[1760023490042,1.41394875,4326.6,4326.5,0.8646]
[1760023490243,0.3228,4326.5,4326.2,0.002269]
[1760023490438,0.865,4326.3,4326.2,0.002269]
[1760023490638,1.41394875,4326.3,4326.2,0.418169]
[1760023490937,1.24116237,4327.3,4327.2,0.4158]
[1760023491130,4.0728,4327.5,4327.4,0.41578]
[1760023491336,4.6306,4327.5,4327.4,0.41578]
[1760023491533,4.6306,4327.5,4327.3,0.41579]
[1760023491838,0.235,4327.4,4327.3,0.41579]
[1760023492036,1.1,4327.4,4327.3,0.41579]
[1760023492237,0.865,4327.4,4327.3,0.41579]
[1760023492540,1.1,4327.4,4327.3,0.41579]
[1760023492931,1.1,4327.4,4327.3,41.21579]
[1760023493335,1.1,4327.4,4327.3,40.8]
[1760023494037,0.865,4327.4,4327.3,40.8]
[1760023494433,0.865,4328.2,4328.0,0.41572]
[1760023494734,0.865,4328.3,4328.2,0.4157]
[1760023494935,0.235,4328.3,4328.2,0.4157]
[1760023495139,4.3956,4328.5,4328.4,0.41569]
[1760023495342,4.0728,4328.5,4328.4,0.41569]
[1760023495537,4.3078,4328.5,4328.4,0.41569]
[1760023496344,3.4428,4328.5,4328.4,1.11039]
[1760023497031,3.2078,4328.5,4328.4,1.11039]
[1760023497438,3.2078,4328.5,4328.4,41.91039]
[1760023497644,0.00277461,4328.8,4328.7,1.11036]
[1760023497840,0.23777461,4328.8,4328.7,1.11036]
[1760023498244,0.00277461,4328.8,4328.7,1.11036]
[1760023498441,0.23777461,4328.8,4328.7,1.11036]
[1760023500239,0.23777461,4328.8,4328.4,40.8]
[1760023500240,1.1878,4328.5,4328.4,40.8]
[1760023501141,0.865,4328.4,4328.2,3.2078]
[1760023501439,1.1,4328.3,4328.2,3.2078]
[1760023502243,1.1,4328.3,4327.6,40.8]
[1760023502244,0.865,4327.9,4327.6,3.2078]
[1760023502547,0.865,4327.4,4327.0,3.2078]
[1760023502745,0.235,4327.3,4327.1,40.8]
[1760023503044,0.865,4327.2,4327.1,40.8]
[1760023503636,0.41584,4326.9,4326.4,3.62368]
[1760023503850,1.1878,4326.5,4326.4,3.2078]
[1760023504148,1.83867,4326.5,4326.3,40.8]
[1760023504342,0.865,4326.4,4326.3,40.8]
[1760023504549,0.97367,4326.5,4326.2,0.002269]
[1760023504745,0.865,4326.3,4326.2,0.002269]
[1760023505050,1.1,4326.3,4326.2,40.802269]
[1760023505544,1.1,4326.3,4326.2,0.002269]
[1760023507046,6.1,4326.3,4326.2,0.002269]
[1760023507351,0.865,4325.4,4325.3,3.62378]
[1760023507551,0.235,4325.4,4325.3,4.31848]
[1760023508139,0.235,4325.4,4325.3,3.21067037]
[1760023508140,1.10208143,4325.4,4325.3,3.21067037]
[1760023508747,0.00208143,4325.4,4325.3,3.90537037]
[1760023508953,0.23708143,4325.4,4325.3,3.90537037]
[1760023509347,1.10208143,4325.4,4325.3,3.21067037]
[1760023509749,1.10208143,4325.4,4325.3,3.90537037]
[1760023509947,1.10208143,4325.4,4325.3,3.21067037]
[1760023510246,0.23608143,4325.4,4325.3,3.90537037]
[1760023510446,0.00208143,4325.4,4325.3,3.21067037]
[1760023510650,0.23608143,4325.4,4325.3,3.90537037]
[1760023510849,0.00208143,4325.4,4325.3,3.90537037]
[1760023511150,0.23608143,4325.4,4325.3,3.90537037]
[1760023511348,0.00208143,4325.4,4325.3,3.90537037]
[1760023511650,0.23608143,4325.4,4325.3,3.90537037]
[1760023511946,1.10108143,4325.4,4325.3,3.21067037]
[1760023512953,0.86708143,4325.4,4325.3,3.21067037]
[1760023513149,1.10108143,4325.4,4325.3,3.21067037]
[1760023513349,0.86708143,4325.4,4325.3,3.21067037]
[1760023513544,1.10108143,4325.4,4325.3,3.21067037]
[1760023513842,1.08748143,4325.4,4325.3,3.21067037]
[1760023514047,0.85348143,4325.4,4325.3,3.21067037]
[1760023514252,0.85348143,4325.4,4325.3,0.00287037]
[1760023514253,1.08748143,4325.4,4325.3,0.00287037]
[1760023514546,9.09673021,4325.4,4325.3,0.00287037]
[1760023514747,3.86273021,4325.4,4325.3,0.00287037]
[1760023514955,1.08748143,4325.4,4325.3,0.00287037]
[1760023515148,1.08748143,4325.4,4325.3,0.41885037]
[1760023515647,1.08748143,4325.4,4325.3,1.09795037]
[1760023515854,0.00208143,4325.4,4325.3,1.09795037]
[1760023516156,0.23608143,4325.4,4325.3,1.09795037]
[1760023516357,0.00208143,4325.4,4325.3,1.09795037]
[1760023516650,0.00208143,4325.4,4325.3,45.10575037]
[1760023518049,1.1742,4326.5,4326.4,0.41588]
[1760023518252,0.41589,4326.3,4326.1,0.4159]
[1760023518455,0.8514,4326.2,4326.1,0.4159]
[1760023518649,1.2673,4326.2,4325.5,1.03991]
[1760023518854,0.8514,4326.1,4326.0,0.41592]
[1760023519054,0.85375188,4326.1,4326.0,0.41592]
[1760023520757,0.00235188,4326.1,4326.0,1.09502]
[1760023520956,0.00235188,4326.1,4326.0,6.25462]
[1760023521159,0.00235188,4326.1,4326.0,1.09502]
[1760023521552,0.00235188,4326.1,4326.0,41.89502]
[1760023521851,0.00235188,4326.1,4326.0,42.05462]
[1760023522352,0.85375188,4326.1,4326.0,40.8]
[1760023522755,1.61512,4326.0,4325.9,3.62372]
[1760023523053,0.85375188,4326.1,4325.9,4.30282]
[1760023523254,0.8514,4326.0,4325.9,3.62372]
[1760023523558,0.00235188,4326.1,4325.9,4.30282]
[1760023523754,0.8514,4327.1,4327.0,0.41582]
[1760023523957,0.41579,4327.3,4327.0,0.6791]
[1760023524151,1.2672,4327.3,4327.0,1.09491]
[1760023524358,1.5012,4327.2,4327.1,40.8]
[1760023524854,1.08781531,4327.2,4327.1,40.8]
[1760023525050,0.00241531,4327.2,4327.1,41.4791]
[1760023525255,0.00241531,4327.2,4327.1,44.6869]
[1760023525458,0.85381531,4327.2,4327.1,44.0078]
[1760023525851,0.85381531,4327.2,4327.1,40.8]
[1760023526956,0.3478,4327.0,4325.8,3.2078]
[1760023527158,0.8514,4325.9,4325.6,0.41595]
[1760023527458,0.234,4325.8,4325.7,41.4791]
[1760023528054,3.2078,4326.1,4325.7,41.4791]
[1760023528254,0.8514,4326.4,4326.0,0.6791]
[1760023528455,0.8514,4326.0,4325.7,40.8]
[1760023528660,0.41593,4325.9,4325.7,40.8]
[1760023528858,1.0854,4325.8,4325.7,40.8]
[1760023529356,0.41593,4325.9,4325.3,0.00287037]
[1760023529357,0.8514,4325.9,4325.3,0.00287037]
[1760023529561,1.1992,4326.0,4325.3,0.00287037]
[1760023529752,0.234,4325.9,4325.8,0.41593]
[1760023529951,0.234,4325.9,4325.8,1.09503]
[1760023530151,1.0854,4325.9,4325.8,1.09503]
[1760023530356,0.8514,4325.8,4325.7,0.41594]
[1760023530756,1.0854,4325.8,4325.7,0.41594]
[1760023531362,0.8514,4325.8,4325.7,0.41594]
[1760023531566,4.0592,4326.1,4326.0,0.41592]
[1760023531759,4.2932,4326.1,4326.0,0.41592]
[1760023532069,4.70911,4326.1,4325.9,0.41592]
[1760023532361,4.2932,4326.1,4325.9,0.41592]
[1760023532560,0.8514,4326.0,4325.9,0.41592]
[1760023533265,0.8514,4325.9,4325.8,0.41593]
[1760023533668,1.26734,4325.8,4325.7,0.41594]
[1760023534361,3.2078,4326.1,4326.0,0.6791]
[1760023534766,3.2078,4326.9,4326.8,0.6791]
[1760023535266,3.4418,4326.9,4326.8,41.4791]
[1760023535467,0.00241531,4327.2,4327.1,1.09491]
[1760023535665,0.23641531,4327.2,4327.1,1.09491]
[1760023536071,0.00241531,4327.2,4327.1,6.09491]
[1760023536265,0.00241531,4327.2,4327.1,46.89491]
[1760023536570,0.00241531,4327.2,4327.1,41.89491]
[1760023537064,0.00241531,4327.2,4327.1,40.8]
[1760023537273,0.00241531,4327.2,4327.1,41.4791]
[1760023538272,0.85381531,4327.2,4327.1,40.8]
[1760023539172,0.00241531,4327.2,4327.1,41.4791]
[1760023539376,0.23641531,4327.2,4327.1,41.4791]
[1760023539568,0.00241531,4327.2,4327.1,41.4791]
[1760023540877,0.00241531,4327.2,4327.1,46.4791]
[1760023541369,36.063,4329.4,4327.9,1.03933]
[1760023541672,3.2078,4329.2,4328.8,0.41564]
[1760023541969,0.41559,4329.4,4329.0,0.6767]
[1760023542176,0.234,4329.3,4329.2,0.41561]
[1760023542368,0.2365979,4329.3,4329.2,0.41728595]
[1760023542676,0.2365979,4329.3,4329.2,0.00167595]
[1760023543276,0.2365979,4329.3,4329.2,0.68707595]
[1760023543475,1.0736979,4329.3,4329.2,0.00167595]
[1760023543971,0.0025979,4329.3,4329.2,0.00167595]
[1760023544172,0.2365979,4329.3,4329.2,0.00167595]
[1760023544970,1.0851979,4329.3,4329.2,0.00167595]
[1760023545677,6.0851979,4329.3,4329.2,0.00167595]
[1760023546075,6.0851979,4329.3,4328.4,3.2078]
[1760023546076,0.73988,4328.5,4328.4,3.2078]
[1760023546375,1.4068,4328.5,4328.4,44.0078]
[1760023546676,1.0826,4328.5,4328.4,44.0078]
[1760023546980,1.0826,4328.5,4328.4,44.01003414]
[1760023547972,0.41565,4328.8,4328.6,0.41566]
[1760023548172,0.8486,4329.1,4328.6,0.41566]
[1760023548173,0.0025979,4329.3,4329.2,0.6835]
[1760023548381,0.0025979,4329.3,4329.2,3.8913]
[1760023548784,0.0025979,4329.3,4329.2,44.6913]
[1760023549380,0.0025979,4329.3,4329.2,49.6913]
[1760023550081,0.8511979,4329.3,4329.2,40.8]
[1760023550282,0.0025979,4329.3,4329.2,40.8]
[1760023550581,0.0025979,4329.3,4329.2,44.0078]
[1760023550785,0.8511979,4329.3,4329.2,40.8]
[1760023551084,0.3242,4329.0,4328.7,3.2078]
[1760023551389,1.58848,4328.5,4328.2,3.2078]
[1760023551683,1.58848,4328.5,4328.3,40.8]
[1760023551885,1.58848,4328.5,4327.8,0.6835]
[1760023551886,6.58848,4328.5,4327.8,0.6835]
[1760023552182,1.49828,4328.5,4328.2,3.2078]
[1760023552387,1.49828,4328.5,4328.3,40.8]
[1760023553977,1.26428,4328.5,4328.3,40.8]
[1760023554178,1.49828,4328.5,4328.3,40.8]
[1760023555393,1.49828,4328.5,4328.3,41.21569]
[1760023555589,4.3806,4329.0,4328.3,40.8]
[1760023555793,3.2078,4329.0,4328.9,0.6835]
[1760023555995,0.2365979,4329.3,4328.6,0.6835]
[1760023556298,0.6521979,4329.3,4329.0,0.41562]
[1760023556489,0.2365979,4329.3,4329.2,0.6835]
[1760023556691,0.2365979,4329.3,4328.9,3.8913]
[1760023556985,0.2365979,4329.3,4329.0,0.41563]
[1760023557287,0.0025979,4329.3,4329.1,0.41562]
[1760023557592,0.0025979,4329.3,4329.2,0.6835]
[1760023558097,0.0025979,4329.3,4329.2,5.6835]
[1760023558589,0.0025979,4329.3,4329.2,46.4835]
[1760023558980,0.2847,4330.1,4330.0,0.6835]
[1760023559181,0.70023,4330.1,4329.9,3.2078]
[1760023559390,1.36413,4330.1,4329.9,3.2078]
[1760023559596,1.36413,4330.1,4330.0,40.8]
[1760023559891,1.36673356,4330.1,4330.0,40.8]
[1760023560388,0.10260356,4330.1,4330.0,41.4835]
[1760023560597,0.23660356,4330.1,4330.0,41.4835]
[1760023561591,0.00260356,4330.1,4330.0,41.4835]
[1760023561986,0.00260356,4330.1,4330.0,41.6533]
[1760023562192,4.0564,4331.3,4330.3,1.03877]
[1760023562394,4.0564,4331.3,4330.7,3.2078]
[1760023562589,0.41545,4330.9,4330.7,3.2078]
[1760023562794,0.41549,4330.5,4330.3,0.4155]
[1760023562986,0.8486,4330.4,4330.2,1.09901]
[1760023563187,0.00267009,4330.4,4330.3,0.6835]
[1760023563387,3.2078,4331.3,4331.0,0.41543]
[1760023563588,3.2078,4331.3,4331.1,0.6808]
[1760023563797,0.41542,4331.2,4331.1,0.6808]
[1760023564491,0.00167939,4331.2,4331.1,6.09623]
[1760023564891,0.00167939,4331.2,4330.8,0.6808]
[1760023564892,0.41545,4330.9,4330.8,0.6808]
[1760023565394,1.26569939,4331.2,4330.9,0.41544]
[1760023565594,1.26569939,4331.2,4331.0,40.8]
[1760023565798,0.8486,4331.1,4331.0,40.8]
[1760023566994,1.0826,4331.1,4331.0,40.8]
[1760023568599,0.8486,4331.1,4331.0,40.8]
[1760023568899,0.00167939,4331.2,4331.1,1.09623]
[1760023569392,0.00167939,4331.2,4331.1,0.6808]
[1760023569591,1.26403,4331.1,4331.0,40.8]
[1760023570198,0.41548,4330.6,4330.5,0.6808]
[1760023570896,0.41548,4330.6,4330.5,41.4808]
[1760023572098,0.41546,4330.8,4330.7,0.6808]
[1760023572298,0.64946,4330.8,4330.7,3.8886]
[1760023573096,0.41546,4330.8,4330.7,3.8886]
[1760023573598,1.25108,4330.6,4330.5,40.8]
[1760023574399,1.25108,4330.6,4330.2,3.2078]
[1760023574400,0.4155,4330.3,4330.2,3.2078]
[1760023574693,1.4851,4330.3,4330.2,3.2078]
[1760023575004,0.6495,4330.3,4330.2,44.6614]
[1760023575401,0.4155,4330.3,4330.2,44.6614]
[1760023575606,1.4851,4330.3,4330.2,44.0078]
[1760023576403,1.4851,4330.3,4330.2,44.6614]
[1760023576599,1.2511,4330.3,4330.2,44.6614]
[1760023576802,1.4841,4330.3,4330.2,44.6614]
[1760023577003,1.4841,4330.3,4330.2,44.0078]
[1760023577405,1.4841,4330.3,4330.2,44.6614]
[1760023577707,0.6485,4330.3,4330.2,44.6614]
[1760023579202,0.4155,4330.3,4330.2,44.6614]
[1760023579502,0.8356,4330.7,4330.2,44.0078]
[1760023579707,0.64848,4330.6,4330.5,0.41548]
[1760023579909,0.233,4330.6,4330.5,1.06908]
[1760023580409,0.41541,4331.3,4331.1,1.06903]
[1760023580798,0.00167939,4331.2,4331.1,1.06903]
[1760023581503,0.83727939,4331.2,4331.1,40.8]
[1760023582097,0.83727939,4331.2,4331.1,41.4536]
[1760023582299,0.83727939,4331.2,4331.1,40.8]
[1760023582701,0.83727939,4331.2,4331.1,41.4536]
[1760023583004,0.83727939,4331.2,4331.1,40.8]
[1760023583205,0.41548,4330.6,4330.2,3.2078]
[1760023583401,0.4155,4330.4,4330.2,3.62331]
[1760023583705,0.8356,4329.3,4329.2,3.2078]
[1760023583999,0.8356,4329.3,4328.8,0.6536]
[1760023584000,1.25125,4328.8,4328.6,3.62346]
[1760023584204,0.233,4328.7,4328.6,3.8614]
[1760023584608,1.0686,4328.7,4328.6,3.2078]
[1760023584810,0.41567,4328.6,4328.4,40.80223414]
[1760023585008,0.8356,4328.5,4328.4,40.80223414]
[1760023585200,0.41567,4328.6,4328.4,40.80223414]
[1760023585406,0.233,4328.7,4328.5,0.6536]
[1760023585606,0.41567,4328.6,4328.5,0.6536]
[1760023586006,0.41567,4328.6,4328.4,40.80223414]
[1760023586404,0.41567,4328.6,4328.5,0.6536]
[1760023586605,0.233,4328.6,4328.5,0.6536]
[1760023586813,0.233,4328.6,4328.5,3.8614]
[1760023587004,0.8356,4329.1,4328.7,0.6536]
[1760023587207,1.25124,4328.9,4328.7,0.6536]
[1760023587407,0.41567,4328.7,4328.5,3.2078]
[1760023587608,0.233,4329.0,4328.6,0.41567]
[1760023587913,1.0686,4329.0,4328.7,0.6536]
[1760023588113,0.8356,4329.0,4328.7,0.6536]
[1760023588414,0.233,4328.9,4328.7,1.06925]
[1760023588612,3.2078,4329.4,4328.5,3.2078]
[1760023588912,0.64859,4329.4,4329.3,0.6536]
[1760023589416,0.233,4329.4,4329.3,0.4156]
[1760023589713,0.41557,4329.7,4329.0,3.2078]
[1760023589903,0.233,4329.4,4329.1,0.6536]
[1760023590507,0.233,4329.4,4329.3,0.6536]
[1760023590707,0.41554,4330.0,4329.3,0.6536]
[1760023590909,0.64855,4329.9,4329.8,0.6536]
[1760023591108,0.64855,4329.9,4329.8,41.4536]
[1760023591309,0.41555,4329.9,4329.8,41.4536]
[1760023591510,0.8356,4330.3,4330.1,0.6536]
[1760023591713,0.233,4330.2,4330.1,0.6536]
[1760023592215,0.8356,4330.3,4330.1,0.6536]
[1760023592612,0.1847,4330.7,4330.5,0.6536]
[1760023592811,1.1829,4330.5,4330.0,3.2078]
[1760023593013,0.3473,4330.5,4330.0,3.2078]
[1760023593316,0.8356,4330.2,4330.1,0.41552]
[1760023593519,0.8356,4330.2,4330.0,3.2078]
[1760023593715,0.8356,4329.9,4329.8,41.86915]
[1760023594017,0.41554,4330.0,4329.8,41.86915]
[1760023594218,0.8356,4329.9,4329.8,40.8]
[1760023594716,0.233,4329.9,4329.8,41.21555]
[1760023595116,0.233,4329.9,4329.8,41.4536]
[1760023595411,3.2078,4330.4,4329.8,40.8]
[1760023595611,0.41552,4330.1,4330.0,3.3868]
[1760023595811,0.41552,4330.1,4330.0,4.0404]
[1760023596320,0.41552,4330.2,4330.0,4.45592]
[1760023596617,0.64852,4330.2,4330.0,3.3868]
[1760023596814,0.64852,4330.2,4330.0,3.2078]
[1760023597014,0.8356,4330.1,4330.0,3.2078]
[1760023598013,0.64852,4330.2,4330.1,0.6536]
[1760023599614,0.8356,4330.6,4330.0,3.2078]
[1760023599918,0.41551,4330.3,4330.1,0.6536]
[1760023600121,0.8356,4330.2,4330.1,0.6536]
[1760023600616,0.41551,4330.3,4330.1,0.6536]
[1760023600817,0.41552,4330.1,4330.0,4.27693]
[1760023601520,0.41552,4330.1,4330.0,3.8614]
[1760023601819,0.41552,4330.1,4330.0,4.27693]
[1760023603322,0.233,4330.5,4330.0,4.27693]
[1760023603323,0.1847,4330.7,4330.1,0.6263]
[1760023603523,0.41552,4330.1,4330.0,4.24963]
[1760023603723,0.41552,4330.1,4330.0,5.36893]
[1760023604315,0.233,4330.6,4330.3,0.5138]
[1760023604522,0.41549,4330.5,4330.4,2.11929]
[1760023604822,0.41549,4330.5,4330.4,1.7038]
[1760023605021,0.64849,4330.5,4330.4,2.11929]
[1760023606025,0.1847,4330.7,4330.4,2.11929]
[1760023606026,0.41548,4330.6,4330.5,1.49488]
[1760023606326,1.48818,4330.6,4330.5,1.0794]
[1760023609122,1.48818,4330.6,4330.5,1.49489]
[1760023609320,1.25518,4330.6,4330.5,1.0794]
[1760023609625,1.48818,4330.6,4330.5,2.11929]
[1760023610320,1.48818,4330.6,4330.5,1.7038]
[1760023610620,1.48818,4330.6,4330.5,2.11929]
[1760023611318,1.48818,4330.6,4330.5,1.7038]
[1760023611516,2.02718,4330.6,4330.5,1.0794]
[1760023612525,1.48818,4330.6,4330.5,1.7038]
[1760023613123,0.41548,4330.6,4330.5,2.11929]
[1760023613428,2.57448,4330.6,4330.5,0.5138]
[1760023613727,1.25521,4330.3,4330.2,2.11931]
[1760023614028,0.8397,4330.3,4330.2,2.11931]
[1760023614328,0.41549,4330.5,4330.4,2.11929]
[1760023614829,2.13459,4330.5,4330.4,1.49489]
[1760023615020,2.13459,4330.5,4330.4,2.11929]
[1760023615425,2.13459,4330.5,4330.4,1.7038]